Cogmind - Beta 13 @@@ ROGUE MODE // 2024.06.18 @ 11:53:41 Player: dp-fld Result: Destroyed by H-88 Terminator with KE Penetrator Performance ------------- Evolutions (9) 4500 Regions Visited (28) 5600 Robots Destroyed (270) 1350 Value Destroyed (7288) 7288 Prototype IDs (64) 1280 Alien Tech Used (3) 600 Bonus (1553) 1553 TOTAL SCORE: 22171 Bonus ------- High Alert Combat Kills 631 Follower Combat Kills 778 Met Data Miner 300 Met Imprinter 300 Met Zhirov 300 Friendly Fire -756 Cogmind --------- Core Integrity 0/1600 Matter 40/300 Energy 97/100 System Corruption 1% Temperature Cool (0) Movement Core (100) Ox1 Location -1/Access Parts ------- > --- POWER (2) -------- (None) > --- PROPULSION (7) --- (None) > --- UTILITY (14) ----- Advanced Trap Extractor (1/8 Dirty Bomb) > --- WEAPON (3) ------- (None) > --- INVENTORY (5) ---- Advanced Coolant Injector Quantum Capacitor Peak State ------------ > --- POWER ------------ Enhanced Fission Core Fusion Reactor > --- PROPULSION ------- Cooled Aerolev Unit Cooled Aerolev Unit Cooled Aerolev Unit Combat Airjet Combat Airjet Cooled Gravmag System > --- UTILITY ---------- Experimental Heat Sink Large Storage Unit Advanced Trap Scanner Enhanced Optical Array Improved Signal Interpreter Long-range Terrain Scanner Advanced Terrain Scan Processor Medium Regenerative Plating System Mapper Quantum Router > --- WEAPON ----------- Scythe > --- INVENTORY -------- Combat Airjet Combat Airjet Cooled Gravmag System Cooled Gravmag System Advanced Energy Well Advanced Terrain Scanner Improved Particle Charger Particle Accelerator Quantum Capacitor Advanced Hacking Suite Authchip [Power] Advanced Trap Extractor Transdimensional Reconstructor Improved Datajack [Rating: 121] Favorites ----------- Power Micro Fission Core Engine Heavy Ion Engine Power Core Micro Fission Core Reactor Fusion Reactor Propulsion Cooled Airjet Treads Light Treads Leg Aluminum Leg Wheel Centrium Wheel Hover Unit Cooled Airjet Flight Unit Improved VTOL Module Utility Improved Signal Interpreter Device Structural Scanner Storage Huge Storage Unit Processor Improved Signal Interpreter Hackware Quantum Router Protection Improved Utility Shielding Weapon Power Sword Energy Gun Beamcaster Energy Cannon Cooled Particle Cannon Ballistic Gun High-powered Shotgun Ballistic Cannon Heavy Flak Cannon Launcher Mini Grenade Launcher Impact Weapon Maul Slashing Weapon Power Sword Piercing Weapon Spear Special Melee Weapon Improved Datajack Build | -11 -10 -9 -9 -9 -8 -8 -7 -7 -7 -7 -6 -6 -6 -6 -6 -5 -5 -5 -5 -5 -4 -4 -4 -4 -3 -3 -2 -1 ------- Run | Yrd Mat Mat Min Exi Min Mat Fac Low Low Zio Pro Fac Low Low Dat Pro Fac Was Fac Ext Fac Upp Upp Zhi Pro Res Res Acc Slots Evolved 18 | . . 2 . . . 2 2 . . . . 2 . . . . 2 . . . 2 . . . . 2 2 2 Power . | . . . . . . . . . . . . . . . . . . . . . . . . . . . . . Propulsion 5 | . . 1 . . . . 1 . . . . . . . . . 1 . . . 1 . . . . . . 1 Utility 12 | . . 1 . . . 2 1 . . . . 2 . . . . 1 . . . 1 . . . . 2 1 1 Weapon 1 | . . . . . . . . . . . . . . . . . . . . . . . . . . . 1 . Parts Attached 458 | 7 24 48 6 3 3 64 76 7 11 6 8 52 2 2 5 3 27 3 19 12 22 4 1 7 3 11 10 12 Power 36 | 1 3 5 . . 1 3 4 . 1 . . 2 . . 1 . 5 . 1 . 3 . . 1 . 2 2 1 Engine 14 | 1 3 5 . . 1 1 2 . . . . . . . . . 1 . . . . . . . . . . . Core 17 | . . . . . . 2 2 . 1 . . 2 . . 1 . 4 . 1 . 3 . . . . 1 . . Reactor 5 | . . . . . . . . . . . . . . . . . . . . . . . . 1 . 1 2 1 Propulsion 100 | 2 9 22 1 . 2 16 10 . . . . 5 . . 1 . 2 2 1 4 7 . . 3 1 4 3 5 Treads 44 | . 2 22 1 . 2 14 1 . . . . . . . . . . . . . . . . . . . . 2 Leg 12 | 2 7 . . . . . . . . . . . . . . . . . . . . . . . . . . 3 Wheel 2 | . . . . . . . . . . . . . . . . . . . . . 2 . . . . . . . Hover 41 | . . . . . . 1 9 . . . . 5 . . 1 . 2 2 1 4 5 . . 3 1 4 3 . Flight 1 | . . . . . . 1 . . . . . . . . . . . . . . . . . . . . . . Utility 201 | 2 4 10 1 . . 19 54 6 4 4 5 23 1 2 2 2 13 1 15 4 9 4 1 3 1 3 3 5 Device 120 | 1 2 1 1 . . 11 37 5 2 2 4 17 . . . 2 12 . 3 4 4 3 1 2 1 . 3 2 Storage 11 | 1 1 2 . . . . 2 . . . . 1 . 1 . . 1 . . . . . . 1 . . . 1 Processor 9 | . . . . . . 2 1 . . . . 2 . . . . . . . . . 1 . . . 1 . 2 Hackware 14 | . . . . . . . 1 . . . . . . . 2 . . . 7 . 2 . . . . 2 . . Protection 47 | . 1 7 . . . 6 13 1 2 2 1 3 1 1 . . . 1 5 . 3 . . . . . . . Artifact . | . . . . . . . . . . . . . . . . . . . . . . . . . . . . . Weapon 121 | 2 8 11 4 3 . 26 8 1 6 2 3 22 1 . 1 1 7 . 2 4 3 . . . 1 2 2 1 Energy Gun 2 | . 1 . . . . . . . . . . . . . . . . . . 1 . . . . . . . . Energy Cannon 14 | . 1 . . . . . 1 . 1 . 1 6 . . . . 2 . . 1 . . . . . . 1 . Ballistic Gun 38 | 2 6 7 2 1 . 18 1 . . . . . . . . . . . . . . . . . . 1 . . Ballistic Cannon 2 | . . . . . . . 1 . . . . 1 . . . . . . . . . . . . . . . . Launcher 25 | . . 2 1 1 . 4 1 . 3 1 1 3 1 . . 1 1 . 1 . 2 . . . . 1 . 1 Special Weapon . | . . . . . . . . . . . . . . . . . . . . . . . . . . . . . Impact Weapon 3 | . . 2 1 . . . . . . . . . . . . . . . . . . . . . . . . . Slashing Weapon 19 | . . . . . . 3 2 1 2 . 1 7 . . . . 1 . . 1 . . . . 1 . . . Piercing Weapon 5 | . . . . . . . . . . . . 2 . . 1 . . . . 1 1 . . . . . . . Special Melee Weapon 13 | . . . . 1 . 1 2 . . 1 . 3 . . . . 3 . 1 . . . . . . . 1 . Unidentified Prototypes 16 | . . . . . . 3 . . . . . 1 1 . 2 . . . . . 2 . . 5 . 1 1 . Parts Lost 75 | . 5 2 1 . 3 8 . . . . . . . . 3 . . . . 4 14 . 2 . 2 15 4 12 Power 10 | . 1 1 . . . . . . . . . . . . 1 . . . . . 2 . 1 . 1 2 . 1 Propulsion 25 | . 1 . 1 . 2 3 . . . . . . . . 1 . . . . 2 3 . . . . 6 . 6 Utility 28 | . 2 1 . . 1 4 . . . . . . . . 1 . . . . . 7 . . . 1 4 3 4 Weapon 12 | . 1 . . . . 1 . . . . . . . . . . . . . 2 2 . 1 . . 3 1 1 Highest Loss Streak 12 | . 4 1 1 . 3 2 . . . . . . . . 3 . . . . 1 5 . 2 . 2 12 4 5 To Critical Strikes 1 | . . . . . . . . . . . . . . . . . . . . 1 . . . . . . . . Average Slot Usage (%) 92 | . 99 99 100 86 99 88 99 100 100 100 100 98 87 86 89 91 95 100 98 96 91 94 82 86 90 71 7 19 Engine 4 | . 14 11 11 11 11 1 3 7 6 . . . . . . . 2 . . . . . . . . . . . Core 4 | . . . . . . 7 3 . . 7 7 6 6 6 6 6 8 11 11 11 9 10 5 5 4 . . . Treads 12 | . 7 33 33 33 33 26 2 . . . . . . . . . . . . . . . . . . . . . Leg 1 | . 20 . . . . . . . . . . . . . . . . . . . . . . . . . . 7 Hover 14 | . . . . . . . 27 30 30 30 30 26 25 25 25 25 27 27 27 27 25 30 30 30 30 22 . 1 Device 12 | . 9 11 11 11 11 12 13 19 20 14 13 18 12 12 3 10 15 13 10 11 14 14 10 13 14 6 1 3 Storage 7 | . 14 11 11 11 11 9 7 7 7 7 7 6 6 6 6 6 5 5 5 5 5 5 5 5 5 3 . 1 Processor 7 | . . . . . . 4 11 15 15 15 15 16 18 18 18 13 11 11 11 11 10 14 15 15 15 13 . 2 Hackware 3 | . . . . . . . 3 . . . . . . . 7 12 11 11 14 11 11 10 10 10 10 9 2 . Protection 8 | . 4 10 11 11 10 8 7 3 2 7 8 11 12 11 12 6 5 8 6 11 5 5 5 5 5 2 . . Energy Cannon 1 | . 5 2 . . . . 2 7 6 . 7 1 . . . . . . . 4 . . . . . . . . Ballistic Gun 6 | . 16 18 10 . 11 17 1 . . . . . . . . . . . . . . . . . . 2 . . Slashing Weapon 2 | . . . . . . . 6 7 6 7 3 5 6 6 6 6 5 5 5 1 . . . . 1 3 . . Special Melee Weapon 1 | . . . . 9 . . 3 . . 6 . 1 . . . . 1 5 4 . . . . . . . 1 . Naked Turns 21 | . . . . . . . . . . . . . . . . . . . . . . . . . . 4 17 . Heaviest Build 115 | 13 52 100 100 98 98 115 96 30 31 25 31 38 36 35 37 36 48 46 46 56 52 54 50 58 60 59 15 15 Greatest Support 150 | 20 40 60 60 60 60 63 82 32 32 32 32 37 37 37 37 37 45 49 49 57 70 63 63 63 63 67 3 150 Greatest Overweight (x) 4 | 1 1 1 1 1 1 2 1 . . . . 1 . . . . 1 . . 1 . . . . . 1 4 3 Average Overweight (x) . | . . . 1 1 1 1 . . . . . . . . . . . . . . . . . . . . . . Largest Inventory Capacity 25 | 8 20 25 25 25 25 25 25 10 10 10 10 15 15 15 15 15 15 15 15 15 15 15 15 15 15 15 5 10 Average Capacity 17 | 7 10 21 25 25 25 25 11 10 10 10 10 12 15 15 15 15 15 15 15 15 15 15 15 15 15 13 5 7 Most Carried 25 | 6 13 25 25 25 24 25 25 10 10 10 10 15 15 15 15 14 15 15 15 15 15 11 10 15 15 15 5 10 Average Carried 16 | 4 8 21 24 24 23 24 11 10 10 10 10 11 14 15 14 13 14 14 14 14 14 9 9 13 14 12 4 7 Final Capacity 25 | 8 20 25 25 25 25 25 10 10 10 10 10 15 15 15 15 15 15 15 15 15 15 15 15 15 15 5 5 5 Final Carried 25 | 6 13 25 24 23 22 25 10 10 10 10 10 14 14 15 14 14 15 15 15 15 12 10 10 15 15 4 5 3 Class Distribution -------------------- 32% | Scavenger-Mutant 22% | Mutant 13% | Scout 10% | Hacker-Scout 6% | Infiltrator-Ninja 6% | Hacker-Ninja 5% | Hacker-Mutant Dominant Class ---------------- Mutant | -10/Materials Scavenger-Mutant | -9/Materials Scavenger-Mutant | -9/Mines Scavenger-Mutant | -9/Exiles Scavenger-Mutant | -8/Mines Scavenger-Mutant | -8/Materials Mutant | -7/Factory Scout | -7/Lower Caves Scout | -7/Lower Caves Scout | -7/Zion Scout | -6/Proximity Caves Infiltrator-Ninja | -6/Factory Scout | -6/Lower Caves Scout | -6/Lower Caves Hacker-Gladiator | -6/Data Miner Hacker-Scout | -5/Proximity Caves Hacker-Ninja | -5/Factory Hacker-Scout | -5/Waste Hacker-Ninja | -5/Factory Hacker-Mutant | -5/Extension Hacker-Mutant | -4/Factory Hacker-Scout | -4/Upper Caves Hacker-Scout | -4/Upper Caves Hacker-Scout | -4/Zhirov Hacker-Scout | -3/Proximity Caves Hacker-Mutant | -3/Research Mutant | -2/Research Mutant | -1/Access Resources | -11 -10 -9 -9 -9 -8 -8 -7 -7 -7 -7 -6 -6 -6 -6 -6 -5 -5 -5 -5 -5 -4 -4 -4 -4 -3 -3 -2 -1 ----------- Run | Yrd Mat Mat Min Exi Min Mat Fac Low Low Zio Pro Fac Low Low Dat Pro Fac Was Fac Ext Fac Upp Upp Zhi Pro Res Res Acc Matter Collected 7337 | 282 437 935 240 . 101 2091 795 97 146 37 66 543 83 45 . 124 334 50 203 158 280 38 . . 33 138 . 81 Remotely 1582 | . . . . . . 1582 . . . . . . . . . . . . . . . . . . . . . . Salvage Created 10605 | 35 647 1675 215 . 193 2994 1016 . 68 . 78 1265 . . 28 5 403 . 349 578 923 38 38 . . 36 . 21 Parts 660 | 2 36 109 10 . 21 152 79 . 4 . 9 89 . . 3 2 34 . 19 18 65 3 2 . . 3 . . Haulers Intercepted 18 | . 1 5 . . . 4 2 . . . . 2 . . . . . . 2 . 2 . . . . . . . Recyclers Shooed 13 | . . 1 . . . 5 1 . . . . 1 . . . . . . . 2 2 . . . . . . 1 Parts Field Recycled . | . . . . . . . . . . . . . . . . . . . . . . . . . . . . . Retrieved Matter . | . . . . . . . . . . . . . . . . . . . . . . . . . . . . . Parts Self-Destructed 29 | . . . . . . . . 5 7 . 6 . . . . 2 . . . . . 7 2 . . . . . Prevented 5 | . . . . . . . . 2 . . . . . . . 2 . . . . . 1 . . . . . . Kills | -11 -10 -9 -9 -9 -8 -8 -7 -7 -7 -7 -6 -6 -6 -6 -6 -5 -5 -5 -5 -5 -4 -4 -4 -4 -3 -3 -2 -1 ------- Run | Yrd Mat Mat Min Exi Min Mat Fac Low Low Zio Pro Fac Low Low Dat Pro Fac Was Fac Ext Fac Upp Upp Zhi Pro Res Res Acc Combat Hostiles Destroyed 170 | . 14 33 2 . 10 57 5 . 4 . 6 8 . . . 2 4 . . 2 20 . . . . 1 . 2 Melee 10 | . . . . . . . 3 . . . . 2 . . . . 1 . . . 2 . . . . 1 . 1 Guns 93 | . 14 24 1 . 4 48 1 . . . . . . . . . . . . . 1 . . . . . . . Cannons 12 | . . 6 . . . . 1 . . . . 1 . . . . 2 . . 2 . . . . . . . . AOE 55 | . . 3 1 . 6 9 . . 4 . 6 5 . . . 2 1 . . . 17 . . . . . . 1 Classes Destroyed 21 | 1 5 3 3 . 1 5 1 . . . 1 . . . . . . . . . . 1 . . . . . . Worker 18 | . . . 1 . 1 2 3 . . . . 6 . . . . . . 2 . 3 . . . . . . . Builder 20 | . . . 2 . 1 3 6 . . . . 2 . . . . . . 1 1 4 . . . . . . . Tunneler 4 | 2 . . . . . . . . . . . 2 . . . . . . . . . . . . . . . . Hauler 18 | . 1 5 . . . 4 2 . . . . 2 . . . . . . 2 . 2 . . . . . . . Recycler 25 | . 2 2 2 . 1 6 3 . . . . 4 . . . . 1 . . 3 1 . . . . . . . Minesweeper 2 | . . . . . . . . . . . . . . . . . . . . . . 1 1 . . . . . Mechanic 4 | . . 2 . . . 1 . . . . . 1 . . . . . . . . . . . . . . . . Operator 3 | . 1 . . . . . 1 . . . . . . . . . . . 1 . . . . . . . . . Drone 6 | . . . . . . . . . . . 2 1 . . . 2 1 . . . . . . . . . . . Watcher 18 | . . . . . . 1 7 . . . . 6 . . . . 3 . . . 1 . . . . . . . Swarmer 45 | . 6 4 1 . 7 3 . . 4 . 4 3 . . . . . . . . 12 . . . . 1 . . Grunt 67 | . 8 19 . . 2 36 . . . . . . . . . . . . . 1 1 . . . . . . . Brawler 4 | . . 2 . . . 2 . . . . . . . . . . . . . . . . . . . . . . Duelist 1 | . . . . . 1 . . . . . . . . . . . . . . . . . . . . . . . Protector 2 | . . . . . . 2 . . . . . . . . . . . . . . . . . . . . . . Sentry 20 | . . 8 . . . 10 . . . . . . . . . . . . . 1 1 . . . . . . . Demolisher 1 | . . . 1 . . . . . . . . . . . . . . . . . . . . . . . . . Specialist 2 | . . . . . . 2 . . . . . . . . . . . . . . . . . . . . . . Hunter 1 | . . . . . . 1 . . . . . . . . . . . . . . . . . . . . . . Programmer 20 | . . . . . . . 5 . . . . 4 . . . . 3 . . . 6 . . . . . . 2 Heavy 1 | . . . . . . 1 . . . . . . . . . . . . . . . . . . . . . . Martyr 1 | . . . . . . . . . . . . . . . . . . . 1 . . . . . . . . . Best Kill Streak 9 | 2 6 6 2 . 6 9 2 . 3 . 4 6 . . 1 2 1 . 1 2 9 1 1 . . 1 . 2 Combat Bots Only 9 | . 3 6 1 . 4 9 1 . 3 . 4 3 . . . 2 1 . . 1 6 . . . . 1 . 2 Max Kills in Single Turn 4 | 1 1 4 1 . 4 3 1 . 3 . 3 3 . . 1 1 1 . 1 1 3 1 1 . . 1 . 1 Gunslinging . | . . . . . . . . . . . . . . . . . . . . . . . . . . . . . Exploded 3 | . . 2 1 . 3 2 . . 3 . 3 2 . . . 1 1 . . . 2 . . . . . . 1 Melee 1 | . . . . . . . 1 . . . . 1 . . . . 1 . . . 1 . . . . 1 . 1 Uniques/NPCs Destroyed 1 | . . . . . . . . . . . . . . . 1 . . . . . . . . . . . . . Data Miner (-6/Data Miner) Combat | -11 -10 -9 -9 -9 -8 -8 -7 -7 -7 -7 -6 -6 -6 -6 -6 -5 -5 -5 -5 -5 -4 -4 -4 -4 -3 -3 -2 -1 -------- Run | Yrd Mat Mat Min Exi Min Mat Fac Low Low Zio Pro Fac Low Low Dat Pro Fac Was Fac Ext Fac Upp Upp Zhi Pro Res Res Acc Hostile Shots Fired 1460 | . 87 124 15 . 44 254 65 . 8 . 3 13 . . 12 17 19 . 3 85 173 8 11 . 32 180 68 239 Missed 535 | . 20 34 1 . 13 80 33 . 1 . 2 3 . . 5 10 7 . 2 36 80 5 5 . 12 75 29 82 Damage Taken 18206 | . 706 1309 380 . 592 3017 394 . 113 . 14 376 . . 329 170 249 . 47 1198 1965 60 144 . 532 2071 838 3702 Core 4362 | . 161 149 44 . 88 156 53 . 18 . . 36 . . 90 55 44 . . 191 287 . . . 128 745 507 1610 Absorbed by Shields 65 | . . . . . . . . . . . . . . . . . . . . 65 . . . . . . . . Redirected to Shielding 209 | . . . . . . . 21 . . . . 20 . . . 22 36 . . 90 20 . . . . . . . Regen/Repaired (Parts) 1905 | . . 173 . . . 564 . . . 313 . 33 . . . . . . 87 277 172 207 . 53 . 26 . . Core Remaining (%) 64 | 100 35 . . . 29 71 . . . . 89 . . . . 78 . . . 76 . . . . 63 37 65 . Volleys Fired 475 | 6 64 90 7 . 8 178 17 2 6 . 5 13 . . . 7 10 . . 30 25 . . . . 2 1 4 Largest 2 | 2 2 2 2 . 2 2 2 1 1 . 1 1 . . . 1 1 . . 1 2 . . . . 1 1 1 Hottest 125 | 40 125 125 46 . 53 55 90 90 90 . 90 90 . . . 30 90 . . 113 105 . . . . 49 120 52 Shots Fired 835 | 12 129 179 14 . 17 354 19 2 6 . 5 13 . . . 7 10 . . 32 29 . . . . 2 1 4 Gun 653 | 12 126 140 12 . 9 344 5 . . . . . . . . . . . . . 5 . . . . . . . Cannon 113 | . 3 37 . . . . 14 2 3 . 2 10 . . . . 9 . . 32 . . . . . . 1 . Launcher 69 | . . 2 2 . 8 10 . . 3 . 3 3 . . . 7 1 . . . 24 . . . . 2 . 4 Special . | . . . . . . . . . . . . . . . . . . . . . . . . . . . . . Kinetic 630 | 12 119 129 12 . 9 344 5 . . . . . . . . . . . . . . . . . . . . . Thermal 136 | . 10 48 . . . . 14 2 3 . 2 10 . . . . 9 . . 32 5 . . . . . 1 . Explosive 69 | . . 2 2 . 8 10 . . 3 . 3 3 . . . 7 1 . . . 24 . . . . 2 . 4 Electromagnetic . | . . . . . . . . . . . . . . . . . . . . . . . . . . . . . Robot Hit Streak 21 | 3 13 21 3 . 3 18 6 . 2 . 1 2 . . . . 3 . . 6 4 . . . . 1 1 2 Robot Miss Streak 5 | 1 3 3 2 . 2 5 2 . 1 . . 1 . . . 2 5 . . 3 1 . . . . 1 . 1 Penetration Max . | . . . . . . . . . . . . . . . . . . . . . . . . . . . . . Secondary Targets 5 | . . 1 . . . 4 . . . . . . . . . . . . . . . . . . . . . . Max Gunslinging Chain 1 | . . 1 . . . 1 . . . . . . . . . . . . . . . . . . . . . . Capacitor 3 | . . . . . . . . . . . . . . . . . 3 . . . . . . . . . . . Shots Hit Robots 723 | 9 90 138 13 4 8 262 53 . 1 1 1 42 . . 1 . 15 7 11 22 30 1 1 . . 10 1 2 Core Hits 463 | 5 32 76 7 . 19 161 21 . 9 . 6 24 . . 1 2 6 . 6 8 57 1 1 . . 9 . 12 Critical Kills 6 | . 1 1 2 . 1 1 . . . . . . . . . . . . . . . . . . . . . . Critical Parts Destroyed 4 | . . . 1 . . 3 . . . . . . . . . . . . . . . . . . . . . . Critical Strikes 22 | . 1 2 3 . 1 4 4 . . . . 3 . . . . . . . . 2 . . . . 2 . . Burn 1 | . . 1 . . . . . . . . . . . . . . . . . . . . . . . . . . Destroy 7 | . 1 1 . . 1 4 . . . . . . . . . . . . . . . . . . . . . . Smash 3 | . . . 3 . . . . . . . . . . . . . . . . . . . . . . . . . Sever 7 | . . . . . . . 4 . . . . 1 . . . . . . . . . . . . . 2 . . Impale 4 | . . . . . . . . . . . . 2 . . . . . . . . 2 . . . . . . . Melee Attacks 513 | . . 2 5 4 . 7 176 8 5 3 4 128 2 2 24 2 34 7 19 8 44 1 2 . 1 25 . . Impact 7 | . . 2 5 . . . . . . . . . . . . . . . . . . . . . . . . . Slashing 427 | . . . . . . 7 174 8 5 2 4 116 2 2 21 1 31 5 17 6 . . . . 1 25 . . Piercing 65 | . . . . . . . . . . . . 12 . . 3 1 . . . 2 44 1 2 . . . . . Sneak Attacks 81 | . . . 4 4 . 1 20 . . 1 . 20 . . 1 . 2 7 9 4 6 1 1 . . . . . Combat Hostiles . | . . . . . . . . . . . . . . . . . . . . . . . . . . . . . Follow-up Attacks 3 | . . . . . . . . . . . . 3 . . . . . . . . . . . . . . . . Damage Inflicted 26318 | 82 981 2307 623 . 753 6149 3067 . 263 . 295 3334 . . 90 150 806 410 687 1232 3514 70 82 . . 604 75 744 Guns 7792 | 82 927 1579 108 . 84 4848 90 . . . . . . . . . . . . . 74 . . . . . . . Cannons 1895 | . 54 478 . . . . 65 . . . . 140 . . . . 294 . . 819 . . . . . . 45 . Explosions 7317 | . . 215 118 . 669 1229 . . 263 . 295 637 . . . 150 42 . . . 2695 . . . . 287 . 717 Melee 9147 | . . . 376 . . 72 2912 . . . . 2557 . . 90 . 470 410 687 394 745 70 82 . . 282 . . Ramming 167 | . . 35 21 . . . . . . . . . . . . . . . . 19 . . . . . 35 30 27 Kinetic 7496 | 82 830 1454 108 . 84 4848 90 . . . . . . . . . . . . . . . . . . . . . Thermal 3134 | . 151 603 . . . . 65 . . . . 356 . . . . 294 . . 819 801 . . . . . 45 . Explosive 6374 | . . 215 118 . 669 1229 . . 263 . 295 421 . . . 150 42 . . . 1968 . . . . 287 . 717 Electromagnetic . | . . . . . . . . . . . . . . . . . . . . . . . . . . . . . Impact 376 | . . . 376 . . . . . . . . . . . . . . . . . . . . . . . . . Slashing 7524 | . . . . . . 72 2912 . . . . 2328 . . . . 470 410 687 363 . . . . . 282 . . Piercing 1247 | . . . . . . . . . . . . 229 . . 90 . . . . 31 745 70 82 . . . . . Highest Corruption 11 | . 5 4 4 4 4 2 1 1 1 1 . 1 1 1 1 1 4 4 4 8 5 5 5 5 11 8 . 1 Average Corruption 3 | . 3 4 4 4 4 2 1 1 1 1 . 1 1 1 1 1 3 4 4 5 2 5 5 5 6 3 . 1 Corruption Purged . | . . . . . . . . . . . . . . . . . . . . . . . . . . . . . Corruption Blocked . | . . . . . . . . . . . . . . . . . . . . . . . . . . . . . Effects 272 | . 13 50 38 10 18 22 5 2 2 1 . 15 . 2 . 4 6 5 15 29 3 11 4 4 9 4 . . Message Errors 60 | . 2 8 10 1 2 6 2 . . . . 5 . . . . . 2 4 6 3 6 1 . 1 1 . . Matter Fused 78 | . 3 12 13 5 6 7 1 1 1 1 . 2 . . . 3 2 . 2 6 . 2 3 2 5 1 . . Heat Flow Errors 33 | . 2 12 6 1 4 2 1 1 . . . . . 1 . . . 1 1 1 . . . . . . . . Energy Discharges 29 | . 2 6 1 1 2 1 1 . . . . 4 . 1 . . 1 1 1 1 . 2 . 1 1 2 . . Parts Rejected 3 | . . 2 . . . . . . . . . . . . . . 1 . . . . . . . . . . . Parts Fused 5 | . . . 2 . . 1 . . . . . . . . . . . . . 2 . . . . . . . . Data Loss (minor) 39 | . 2 5 3 2 1 3 . . 1 . . 3 . . . 1 . . 6 9 . 1 . 1 1 . . . Data Loss (major) 11 | . 1 1 1 . 1 . . . . . . 1 . . . . 2 1 1 2 . . . . . . . . Misfires 11 | . 1 2 2 . 2 2 . . . . . . . . . . . . . 2 . . . . . . . . Alerts 2 | . . 1 . . . . . . . . . . . . . . . . . . . . . . 1 . . . Weapon Failures 1 | . . 1 . . . . . . . . . . . . . . . . . . . . . . . . . . Overload Shots 28 | . . . . . . . 6 1 1 . 2 9 . . . . 9 . . . . . . . . . . . Effects 3 | . . . . . . . 1 . . . . 2 . . . . . . . . . . . . . . . . Energy Bleed 2 | . . . . . . . 1 . . . . 1 . . . . . . . . . . . . . . . . Heat Surge 1 | . . . . . . . . . . . . 1 . . . . . . . . . . . . . . . . Overflow Damage 1989 | . . . 127 . 1 57 579 . 1 . 21 694 . . . . 139 60 57 51 185 . . . . 9 . 8 Projectiles 106 | . . . . . . . . . . . . 20 . . . . 72 . . 14 . . . . . . . . Explosions 318 | . . . 19 . 1 . . . 1 . 21 127 . . . . . . . . 141 . . . . . . 8 Melee 1565 | . . . 108 . . 57 579 . . . . 547 . . . . 67 60 57 37 44 . . . . 9 . . Knockbacks 2 | . . . 2 . . . . . . . . . . . . . . . . . . . . . . . . . Impact 2 | . . . 2 . . . . . . . . . . . . . . . . . . . . . . . . . Kinetic . | . . . . . . . . . . . . . . . . . . . . . . . . . . . . . Secondary . | . . . . . . . . . . . . . . . . . . . . . . . . . . . . . Self-Inflicted Damage 585 | . . 95 . . 109 46 . . . . . 91 . . . 39 6 . . 9 129 . . . . 15 14 32 Shots 16 | . . 3 . . 3 1 . . . . . 2 . . . 1 1 . . . 3 . . . . . . 2 Rammed 30 | . . 5 1 . . . . . . . . . . . . . . . . 1 . . . . . 9 4 10 Targets Rammed 33 | . . 5 1 . . . . . . . . . . . . . . . . 1 . . . . . 9 4 13 Kicked 2 | . . . . . . . . . . . . . . . . . . . . . . . . . . . . 2 Crushed 1 | . . . . . . . . . . . . . . . . . . . . . . . . . . . . 1 Highest Temperature 327 | . 228 268 271 136 241 270 229 195 34 . 80 137 . 143 . . 168 176 117 324 31 . . . . 6 327 . Average Temperature 61 | . 23 86 102 74 83 55 64 78 19 . 41 49 . 75 . . 75 98 52 55 12 . . . . 6 189 . Received Heat Transfer 3405 | . 285 435 . . 207 1368 78 . . . . 9 . . . 54 . . . 264 194 . 9 . 18 268 45 171 Siege Activations . | . . . . . . . . . . . . . . . . . . . . . . . . . . . . . Robots Corrupted . | . . . . . . . . . . . . . . . . . . . . . . . . . . . . . Combat Hostiles . | . . . . . . . . . . . . . . . . . . . . . . . . . . . . . Parts Fried 2 | . . . . . . . . . . . . . . . . . 2 . . . . . . . . . . . Impact Corruptions 3 | . . . 3 . . . . . . . . . . . . . . . . . . . . . . . . . Robots Melted . | . . . . . . . . . . . . . . . . . . . . . . . . . . . . . Combat Hostiles . | . . . . . . . . . . . . . . . . . . . . . . . . . . . . . Parts Melted 3 | . . 1 . . . . . . . . . 1 . . . . 1 . . . . . . . . . . . Heat Transferred 3447 | . 333 1369 . . . . 50 . . . . 200 . . . . 200 . . 647 611 . . . . . 37 . Parts Sabotaged . | . . . . . . . . . . . . . . . . . . . . . . . . . . . . . Parts Stolen . | . . . . . . . . . . . . . . . . . . . . . . . . . . . . . Parts Stripped . | . . . . . . . . . . . . . . . . . . . . . . . . . . . . . Power Chain Reactions . | . . . . . . . . . . . . . . . . . . . . . . . . . . . . . Alert | -11 -10 -9 -9 -9 -8 -8 -7 -7 -7 -7 -6 -6 -6 -6 -6 -5 -5 -5 -5 -5 -4 -4 -4 -4 -3 -3 -2 -1 ------- Run | Yrd Mat Mat Min Exi Min Mat Fac Low Low Zio Pro Fac Low Low Dat Pro Fac Was Fac Ext Fac Upp Upp Zhi Pro Res Res Acc Peak Influence 808 | 10 265 670 243 . 321 808 552 . . . . 354 . . . . 282 15 529 413 746 . . . . 357 192 409 Initial 361 | . 6 . 237 . . . 361 . . . . 63 . . . . 241 15 10 175 37 . . . . 150 192 108 Average 265 | 3 123 438 70 . 125 374 380 . . . . 93 . . . . 192 15 326 155 388 . . . . 242 178 163 Maximum Alert Level 3 | . 1 2 1 . 1 3 2 . . . . 1 . . . . 1 . 2 2 3 . . . . 1 . 2 Low Security (%) 45 | 100 80 11 77 . 79 33 . . . . . 91 . . . . 47 100 15 68 24 . . . . 18 100 81 Level 1 30 | . 19 29 22 . 20 18 69 . . . . 8 . . . . 52 . 54 29 23 . . . . 81 . 15 Level 2 21 | . . 58 . . . 34 30 . . . . . . . . . . . 30 1 47 . . . . . . 2 Level 3 2 | . . . . . . 12 . . . . . . . . . . . . . . 5 . . . . . . . Level 4 . | . . . . . . . . . . . . . . . . . . . . . . . . . . . . . Level 5 . | . . . . . . . . . . . . . . . . . . . . . . . . . . . . . High Security . | . . . . . . . . . . . . . . . . . . . . . . . . . . . . . Max Security . | . . . . . . . . . . . . . . . . . . . . . . . . . . . . . Sterilizations 1 | . . . . . . 1 . . . . . . . . . . . . . . . . . . . . . . Squads Dispatched 54 | . 2 5 . . . 10 10 . . . . 11 . . . . 3 . 4 2 2 . . . . 1 . 4 Investigation 13 | . 2 1 . . . 1 1 . . . . 5 . . . . . . . . 1 . . . . . . 2 Extermination 10 | . . . . . . . 3 . . . . 4 . . . . 1 . . . 1 . . . . . . 1 Reinforcement 25 | . . 3 . . . 6 5 . . . . 2 . . . . 2 . 3 2 . . . . . 1 . 1 Assault 5 | . . 1 . . . 2 1 . . . . . . . . . . . 1 . . . . . . . . . Garrison 1 | . . . . . . 1 . . . . . . . . . . . . . . . . . . . . . . Intercept . | . . . . . . . . . . . . . . . . . . . . . . . . . . . . . Searches Triggered 4 | . . . . . . . 2 . . . . . . . . . . . . . 2 . . . . . . . Construction Impeded 4 | . . . . . . . . . . . . 1 . . . . 1 . . 1 . . . . . 1 . . Haulers Reinforced 3 | . . . . . . . 2 . . . . . . . . . . . 1 . . . . . . . . . Active Scanning Responses . | . . . . . . . . . . . . . . . . . . . . . . . . . . . . . Cargo Convoy Interrupts . | . . . . . . . . . . . . . . . . . . . . . . . . . . . . . Stealth | -11 -10 -9 -9 -9 -8 -8 -7 -7 -7 -7 -6 -6 -6 -6 -6 -5 -5 -5 -5 -5 -4 -4 -4 -4 -3 -3 -2 -1 --------- Run | Yrd Mat Mat Min Exi Min Mat Fac Low Low Zio Pro Fac Low Low Dat Pro Fac Was Fac Ext Fac Upp Upp Zhi Pro Res Res Acc Distress Signals 24 | . 4 5 . . . 6 . . . . . 1 . . . 1 . . 1 . 2 . . . . 1 1 2 Communications Jammed 49 | . . . . . . . 29 . . . . 11 . . . . 8 . . . 1 . . . . . . . Distress Signals 41 | . . . . . . . 29 . . . . 11 . . . . . . . . 1 . . . . . . . Times Spotted 467 | . 24 47 3 . 13 88 46 3 5 . 1 24 . 1 4 11 16 . 13 21 45 2 7 . 8 31 7 47 Peak Tracking Total 16 | . 5 7 2 . 6 7 7 4 4 . 1 4 . 3 4 8 4 . 4 5 12 2 7 . 5 15 8 16 Tactical Retreats 51 | . . 2 . . . 2 11 . 1 . . 3 . 1 . 3 1 . . 2 4 . 3 . 1 7 1 9 Traps | -11 -10 -9 -9 -9 -8 -8 -7 -7 -7 -7 -6 -6 -6 -6 -6 -5 -5 -5 -5 -5 -4 -4 -4 -4 -3 -3 -2 -1 ------- Run | Yrd Mat Mat Min Exi Min Mat Fac Low Low Zio Pro Fac Low Low Dat Pro Fac Was Fac Ext Fac Upp Upp Zhi Pro Res Res Acc Traps Triggered 19 | . 7 2 . . . . 1 . . . . 4 . . . . 1 . . 4 . . . . . . . . Indirectly . | . . . . . . . . . . . . . . . . . . . . . . . . . . . . . Trap Hack Attempts 136 | . . . . . . 64 30 . . . . 42 . . . . . . . . . . . . . . . . Triggered 2 | . . . . . . 2 . . . . . . . . . . . . . . . . . . . . . . Disarmed 1 | . . . . . . . 1 . . . . . . . . . . . . . . . . . . . . . Reprogrammed 19 | . . . . . . 4 5 . . . . 4 . . . . . . . . 6 . . . . . . . Reused 13 | . . . . . . . . . . . . 6 . . . . . . . . 3 2 . . . . . 2 Traps Extracted 11 | . . . . . . 4 6 . . . . 1 . . . . . . . . . . . . . . . . Installed 16 | . . . . . . . 5 . . . . 5 . . . . . . . . . 2 . . . . . 4 Triggered 18 | . . . . . . . . . . . 1 6 . . . 2 1 . . . 3 2 1 . . . . 2 Most Traps Carried 5 | . . . . . . 4 5 5 5 5 5 5 1 1 1 1 1 1 1 1 1 5 5 5 5 5 5 5 Machines | -11 -10 -9 -9 -9 -8 -8 -7 -7 -7 -7 -6 -6 -6 -6 -6 -5 -5 -5 -5 -5 -4 -4 -4 -4 -3 -3 -2 -1 ---------- Run | Yrd Mat Mat Min Exi Min Mat Fac Low Low Zio Pro Fac Low Low Dat Pro Fac Was Fac Ext Fac Upp Upp Zhi Pro Res Res Acc Machines Disabled 19 | . . 5 . . 1 1 1 . . . . 2 . . 1 . . . 2 2 4 . . . . . . . Max in Single Turn 3 | . . 2 . . 1 1 1 . . . . 1 . . 1 . . . . 1 3 . . . . . . . Garrison Access 6 | . . . . . . 1 1 . . . . 1 . . . . . . 2 . . . . . . 1 . . Machines Repaired . | . . . . . . . . . . . . . . . . . . . . . . . . . . . . . Machines Dismantled . | . . . . . . . . . . . . . . . . . . . . . . . . . . . . . Machines Sabotaged . | . . . . . . . . . . . . . . . . . . . . . . . . . . . . . Overloaded Fab Kills . | . . . . . . . . . . . . . . . . . . . . . . . . . . . . . Hacking | -11 -10 -9 -9 -9 -8 -8 -7 -7 -7 -7 -6 -6 -6 -6 -6 -5 -5 -5 -5 -5 -4 -4 -4 -4 -3 -3 -2 -1 --------- Run | Yrd Mat Mat Min Exi Min Mat Fac Low Low Zio Pro Fac Low Low Dat Pro Fac Was Fac Ext Fac Upp Upp Zhi Pro Res Res Acc Machines Accessed 124 | . 10 11 . 1 . 13 19 . . . . 26 1 . 4 . 11 . 9 7 3 . . 4 . 2 . 3 Terminals 63 | . 8 5 . . . 7 11 . . . . 15 . . . . 6 . 4 5 1 . . . . 1 . . Fabricators 7 | . . . . . . . 1 . . . . 1 . . . . 2 . 1 . 2 . . . . . . . Repair Stations 10 | . . 2 . . . 2 2 . . . . 1 . . . . . . 1 1 . . . . . . . 1 Recycling Units 16 | . 2 2 . . . 2 2 . . . . 3 . . . . 2 . 1 1 . . . . . . . 1 Scanalyzers 6 | . . 2 . . . 1 . . . . . 2 . . . . 1 . . . . . . . . . . . Garrison Access 12 | . . . . . . 1 3 . . . . 4 . . . . . . 2 . . . . . . 1 . 1 Total Hacks 388 | . 25 28 . 5 . 48 43 . . . . 69 1 . 30 . 40 . 34 20 17 . . 16 . 7 . 5 Successful 217 | . 13 16 . 5 . 23 12 . . . . 32 1 . 30 . 20 . 20 15 12 . . 16 . 2 . . Failed 169 | . 11 12 . . . 24 31 . . . . 37 . . . . 20 . 14 5 5 . . . . 5 . 5 Catastrophic 31 | . 2 3 . . . 1 8 . . . . 6 . . . . 3 . 3 . 1 . . . . 1 . 3 Database Lockouts 2 | . 1 . . . . 1 . . . . . . . . . . . . . . . . . . . . . . Manual 129 | . 10 12 . . . 19 18 . . . . 22 . . . . 22 . 7 4 10 . . . . 5 . . Terminals 197 | . 22 11 . . . 33 23 . . . . 44 . . . . 28 . 12 10 8 . . . . 6 . . Fabricators 26 | . . . . . . . 2 . . . . 2 . . . . 4 . 9 . 9 . . . . . . . Repair Stations 33 | . . 4 . . . 7 6 . . . . 2 . . . . . . 3 9 . . . . . . . 2 Recycling Units 39 | . 3 6 . . . 4 5 . . . . 10 . . . . 3 . 6 1 . . . . . . . 1 Scanalyzers 20 | . . 7 . . . 2 . . . . . 6 . . . . 5 . . . . . . . . . . . Garrison Access 21 | . . . . . . 2 7 . . . . 5 . . . . . . 4 . . . . . . 1 . 2 Terminal Hacks 129 | . 10 3 . 5 . 14 4 . . . . 14 1 . 30 . 11 . 7 8 5 . . 16 . 1 . . Record 21 | . . . . 5 . . . . . . . . . . 11 . . . . . . . . 5 . . . . Part Schematic 15 | . . . . . . . . . . . . . . . 11 . 1 . . . . . . 3 . . . . Robot Schematic 5 | . . . . . . . . . . . . . . . 5 . . . . . . . . . . . . . Robot Analysis 9 | . 2 1 . . . . . . . . . 1 . . . . 1 . . . . . . 4 . . . . Prototype ID Bank 15 | . 2 . . . . 5 . . . . . 1 . . 3 . . . . . . . . 4 . . . . Open Door 6 | . . . . . . . . . . . . . 1 . . . . . 1 4 . . . . . . . . Branch Access Points 2 | . . . . . . . . . . . . . . . . . . . 1 . 1 . . . . . . . Machine Index 1 | . . . . . . . . . . . . . . . . . . . . . . . . . . 1 . . Terminal Index 2 | . . . . . . . 1 . . . . 1 . . . . . . . . . . . . . . . . Fabricator Index 1 | . . . . . . . . . . . . . . . . . . . 1 . . . . . . . . . Scanalyzer Index 1 | . . . . . . . . . . . . 1 . . . . . . . . . . . . . . . . Alert Level 6 | . 1 1 . . . 2 . . . . . 1 . . . . . . 1 . . . . . . . . . Unreport Threat 11 | . 1 . . . . 2 . . . . . 2 . . . . 3 . . 2 1 . . . . . . . Locate Traps 14 | . 2 . . . . 2 2 . . . . 4 . . . . 2 . 1 . 1 . . . . . . . Reprogram Traps 1 | . . . . . . . . . . . . . . . . . . . . . 1 . . . . . . . Dispatch Records 1 | . . . . . . . . . . . . . . . . . 1 . . . . . . . . . . . Recall Investigation 1 | . . . . . . . . . . . . 1 . . . . . . . . . . . . . . . . Recall Reinforcements 4 | . . . . . . 1 . . . . . . . . . . 1 . 1 1 . . . . . . . . Hauler Manifests 8 | . 1 1 . . . 1 1 . . . . 1 . . . . 1 . 1 . 1 . . . . . . . Registered Components 1 | . 1 . . . . . . . . . . . . . . . . . . . . . . . . . . . Registered Prototypes 1 | . . . . . . 1 . . . . . . . . . . . . . . . . . . . . . . Zone Layout 3 | . . . . . . . . . . . . 1 . . . . 1 . . 1 . . . . . . . . Fabricator Hacks 14 | . . . . . . . . . . . . 1 . . . . 1 . 7 . 5 . . . . . . . Network Status 1 | . . . . . . . . . . . . 1 . . . . . . . . . . . . . . . . Load Schematic 6 | . . . . . . . . . . . . . . . . . . . 3 . 3 . . . . . . . Build 7 | . . . . . . . . . . . . . . . . . 1 . 4 . 2 . . . . . . . Repair Station Hacks 21 | . . 4 . . . 5 2 . . . . 2 . . . . . . 2 6 . . . . . . . . Scan Component 12 | . . 2 . . . 3 2 . . . . 1 . . . . . . 1 3 . . . . . . . . Repair 9 | . . 2 . . . 2 . . . . . 1 . . . . . . 1 3 . . . . . . . . Recycling Unit Hacks 10 | . 1 1 . . . 2 2 . . . . 2 . . . . . . 1 1 . . . . . . . . Report Inventory 1 | . . . . . . . 1 . . . . . . . . . . . . . . . . . . . . . Retrieve Components 9 | . 1 1 . . . 2 1 . . . . 2 . . . . . . 1 1 . . . . . . . . Scanalyzer 12 | . . 5 . . . . . . . . . 5 . . . . 2 . . . . . . . . . . . Insert Component 8 | . . 3 . . . . . . . . . 3 . . . . 2 . . . . . . . . . . . Analyze 4 | . . 2 . . . . . . . . . 2 . . . . . . . . . . . . . . . . Garrison Access Hacks 6 | . . . . . . 1 1 . . . . 1 . . . . . . 2 . . . . . . 1 . . Seal Access 6 | . . . . . . 1 1 . . . . 1 . . . . . . 2 . . . . . . 1 . . Unauthorized Hacks 25 | . 2 3 . . . 1 3 . . . . 7 . . . . 6 . 1 . 2 . . . . . . . Terminals 10 | . 1 . . . . . 1 . . . . 4 . . . . 4 . . . . . . . . . . . Track 1 | . . . . . . . . . . . . . . . . . 1 . . . . . . . . . . . Assimilate 5 | . . . . . . . 1 . . . . 2 . . . . 2 . . . . . . . . . . . Botnet 3 | . 1 . . . . . . . . . . 1 . . . . 1 . . . . . . . . . . . Operators 1 | . . . . . . . . . . . . 1 . . . . . . . . . . . . . . . . Fabricators 6 | . . . . . . . 1 . . . . 1 . . . . 2 . . . 2 . . . . . . . Prioritize 2 | . . . . . . . . . . . . . . . . . 1 . . . 1 . . . . . . . Liberate 1 | . . . . . . . . . . . . . . . . . 1 . . . . . . . . . . . Haulers 2 | . . . . . . . 1 . . . . 1 . . . . . . . . . . . . . . . . Recompile 1 | . . . . . . . . . . . . . . . . . . . . . 1 . . . . . . . Repair Stations . | . . . . . . . . . . . . . . . . . . . . . . . . . . . . . Recycling Units 9 | . 1 3 . . . 1 1 . . . . 2 . . . . . . 1 . . . . . . . . . Reject 6 | . 1 2 . . . 1 1 . . . . . . . . . . . 1 . . . . . . . . . Mask 1 | . . 1 . . . . . . . . . . . . . . . . . . . . . . . . . . Tunnel 2 | . . . . . . . . . . . . 2 . . . . . . . . . . . . . . . . Scanalyzers . | . . . . . . . . . . . . . . . . . . . . . . . . . . . . . Garrison Access . | . . . . . . . . . . . . . . . . . . . . . . . . . . . . . Data Cores Recovered 1 | . 1 . . . . . . . . . . . . . . . . . . . . . . . . . . . Used . | . . . . . . . . . . . . . . . . . . . . . . . . . . . . . Hacking Detections 85 | . 7 10 . . . 10 19 . . . . 20 . . . . 7 . 6 1 1 . . . . 1 . 3 Full Trace Events 5 | . . . . . . 1 . . . . . 2 . . . . . . . . . . . . . . . 2 Feedback Events . | . . . . . . . . . . . . . . . . . . . . . . . . . . . . . Feedback Blocked . | . . . . . . . . . . . . . . . . . . . . . . . . . . . . . Robot Schematics Acquired 9 | . . . . . . . . . . 4 . . . . 5 . . . . . . . . . . . . . Robots Built 2 | . . . . . . . . . . . . . . . . . . . 2 . . . . . . . . . Authchips 1 | . . . . . . . . . . . . . . . . . . . 1 . . . . . . . . . Time 67 | . . . . . . . . . . . . . . . . . . . 67 . . . . . . . . . Total Robot Build Rating 8 | . . . . . . . . . . . . . . . . . . . 8 . . . . . . . . . Part Schematics Acquired 34 | . . 2 . . . . . . . 15 . 2 . . 11 . 1 . . . . . . 3 . . . . Parts Built 9 | . . . . . . . . . . . . . . . . . 2 . 4 . 3 . . . . . . . Authchips 5 | . . . . . . . . . . . . . . . . . . . 3 . 2 . . . . . . . Time 427 | . . . . . . . . . . . . . . . . . 117 . 187 . 123 . . . . . . . Total Part Build Rating 52 | . . . . . . . . . . . . . . . . . 14 . 23 . 15 . . . . . . . Parts Repaired 9 | . . 2 . . . 2 . . . . . 1 . . . . . . 1 3 . . . . . . . . Time 311 | . . 64 . . . 88 . . . . . 35 . . . . . . 38 86 . . . . . . . . Parts Recycled . | . . . . . . . . . . . . . . . . . . . . . . . . . . . . . Recycled Matter . | . . . . . . . . . . . . . . . . . . . . . . . . . . . . . Retrieved Matter . | . . . . . . . . . . . . . . . . . . . . . . . . . . . . . Retrieved Components 50 | . . . . . . 19 10 . . . . 9 . . . . . . 2 10 . . . . . . . . Parts Scanalyzed 4 | . . 2 . . . . . . . . . 2 . . . . . . . . . . . . . . . . Part Schematics Acquired 4 | . . 2 . . . . . . . . . 2 . . . . . . . . . . . . . . . . Parts Damaged 1 | . . . . . . . . . . . . 1 . . . . . . . . . . . . . . . . Bothacking | -11 -10 -9 -9 -9 -8 -8 -7 -7 -7 -7 -6 -6 -6 -6 -6 -5 -5 -5 -5 -5 -4 -4 -4 -4 -3 -3 -2 -1 ------------ Run | Yrd Mat Mat Min Exi Min Mat Fac Low Low Zio Pro Fac Low Low Dat Pro Fac Was Fac Ext Fac Upp Upp Zhi Pro Res Res Acc Used RIF Installer . | . . . . . . . . . . . . . . . . . . . . . . . . . . . . . Robots Hacked 11 | . . . . 4 . . . . . 1 . . . . . . 2 2 2 . . . . . . . . . Non-combat 6 | . . . . 3 . . . . . . . . . . . . 1 . 2 . . . . . . . . . Combat 5 | . . . . 1 . . . . . 1 . . . . . . 1 2 . . . . . . . . . . Robot Hacks Applied 11 | . . . . 4 . . . . . 1 . . . . . . 2 2 2 . . . . . . . . . parse_system 9 | . . . . 4 . . . . . 1 . . . . . . 2 2 . . . . . . . . . . no_distress 2 | . . . . . . . . . . . . . . . . . . . 2 . . . . . . . . . Relay Couplers Released 3 | . . . . . . . . . . . . . . . . . 3 . . . . . . . . . . . Programmers 3 | . . . . . . . . . . . . . . . . . 3 . . . . . . . . . . . Fabnet Peak Effective % . | . . . . . . . . . . . . . . . . . . . . . . . . . . . . . Robots Rewired 4 | . . . . . . . . . . . . . . . . . . . . 4 . . . . . . . . Allies Hacked 4 | . . . . . . . 1 . . . . . . . . . 1 . 2 . . . . . . . . . Hacks Repelled . | . . . . . . . . . . . . . . . . . . . . . . . . . . . . . Allies | -11 -10 -9 -9 -9 -8 -8 -7 -7 -7 -7 -6 -6 -6 -6 -6 -5 -5 -5 -5 -5 -4 -4 -4 -4 -3 -3 -2 -1 -------- Run | Yrd Mat Mat Min Exi Min Mat Fac Low Low Zio Pro Fac Low Low Dat Pro Fac Was Fac Ext Fac Upp Upp Zhi Pro Res Res Acc Total Allies 38 | . . . . . . . 1 . . . . 1 . . . . 6 20 2 8 . . . . . . . . Largest Group 21 | . . . . . . . 1 . . . . 1 . . . . 3 21 21 12 . . . . . . . . Highest-Rated Group 751 | . . . . . . . 26 . . . . 10 . . . . 118 751 733 546 . . . . . . . . Highest-Rated Ally 159 | . . . . . . . 26 . . . . 10 . . . . 54 50 50 159 . . . . . . . . Total Orders 3 | . . . . . . . . . . . . . . . . . . . . 3 . . . . . . . . STAY 1 | . . . . . . . . . . . . . . . . . . . . 1 . . . . . . . . ROAM 1 | . . . . . . . . . . . . . . . . . . . . 1 . . . . . . . . FOLLOW 1 | . . . . . . . . . . . . . . . . . . . . 1 . . . . . . . . Ally Attacks 233 | . . . . . . . . . . . . . . . . . 30 . 114 89 . . . . . . . . Total Damage 5489 | . . . . . . . . . . . . . . . . . 473 . 2691 2325 . . . . . . . . Kills 33 | . . . . . . . . . . . . . . . . . 6 . 18 9 . . . . . . . . Allies Corrupted 1 | . . . . . . . . . . . . . . . . . . . . 1 . . . . . . . . Allies Melted 2 | . . . . . . . . . . . . . . . . . . . . 2 . . . . . . . . Intel | -11 -10 -9 -9 -9 -8 -8 -7 -7 -7 -7 -6 -6 -6 -6 -6 -5 -5 -5 -5 -5 -4 -4 -4 -4 -3 -3 -2 -1 ------- Run | Yrd Mat Mat Min Exi Min Mat Fac Low Low Zio Pro Fac Low Low Dat Pro Fac Was Fac Ext Fac Upp Upp Zhi Pro Res Res Acc Robot Analysis Total 9 | . 2 1 . . . . . . . . . 1 . . . . 1 . . . . . . 4 . . . . Derelict Logs Recovered 10 | . . . 1 . . . . 1 1 1 1 . 2 2 . . . . . . . 1 . . . . . . Drone Launches . | . . . . . . . . . . . . . . . . . . . . . . . . . . . . . Drone Recoveries . | . . . . . . . . . . . . . . . . . . . . . . . . . . . . . Exploration | -11 -10 -9 -9 -9 -8 -8 -7 -7 -7 -7 -6 -6 -6 -6 -6 -5 -5 -5 -5 -5 -4 -4 -4 -4 -3 -3 -2 -1 ------------- Run | Yrd Mat Mat Min Exi Min Mat Fac Low Low Zio Pro Fac Low Low Dat Pro Fac Was Fac Ext Fac Upp Upp Zhi Pro Res Res Acc Turns Passed 24904 | 125 1078 2589 1747 580 829 4191 2871 488 289 325 317 2442 177 236 158 209 898 175 836 1158 820 540 130 170 372 286 172 696 Spaces Moved 22569 | 86 567 1113 648 238 333 1365 3525 971 488 815 562 3509 361 447 178 395 1339 339 1194 790 718 190 257 159 530 400 274 778 Core 780 | 15 . . . . . . . . . . . . . . . . . . . . . . . . . 46 274 445 Treads 3923 | . 109 1113 648 238 333 1365 95 . . . . . . . . . . . . . . . . . . . . 22 Legs 808 | 71 458 . . . . . . . . . . . . . . . . . . . . . . . . . . 279 Wheels . | . . . . . . . . . . . . . . . . . . . . . . . . . . . . . Hover 17058 | . . . . . . . 3430 971 488 815 562 3509 361 447 178 395 1339 339 1194 790 718 190 257 159 530 354 . 32 Flight . | . . . . . . . . . . . . . . . . . . . . . . . . . . . . . Fastest Speed 38 | 50 120 160 240 240 240 240 38 38 38 38 38 38 45 45 45 45 40 40 47 61 47 47 47 47 41 41 50 50 Average Speed 77 | 108 141 183 240 240 240 245 43 38 38 38 38 42 45 45 45 45 40 43 47 61 57 47 47 47 42 45 52 80 Slowest Speed 330 | 120 240 240 240 240 240 330 250 38 38 38 38 107 45 45 45 45 100 47 47 141 67 47 47 47 47 105 250 200 Overloaded Moves . | . . . . . . . . . . . . . . . . . . . . . . . . . . . . . Propulsion Burnouts . | . . . . . . . . . . . . . . . . . . . . . . . . . . . . . Robots Hopped . | . . . . . . . . . . . . . . . . . . . . . . . . . . . . . Cave-ins Triggered . | . . . . . . . . . . . . . . . . . . . . . . . . . . . . . Teleports 1 | . . . . . . . . . . . . . . . . . . . . . . . . . . 1 . . Exploration Rate (%) 60 | 5 99 77 91 65 64 98 78 97 65 85 59 82 59 60 83 60 27 96 22 73 20 42 55 61 87 15 12 21 Regions Visited 28 Branch Regions 16 Pre-discovered Areas 14 | . . . 1 1 . . . . . 4 . 2 . 1 1 . . . . . . 1 . 3 . . . . Known Exits Taken 19 | . . . . . . 1 1 1 1 1 1 1 1 1 1 1 . . 1 1 1 1 1 1 1 1 . . Unknown Exits Taken 7 | 1 1 1 1 1 1 . . . . . . . . . . . . . . . . . . . . . 1 . Scrap Searched 22 | . . . 1 . 1 . . 4 3 2 2 . 3 2 . 1 . . . . . . 1 . 2 . . . Spaces Dug 306 | . . 2 1 . . 5 117 10 6 . 6 77 2 2 . 18 24 . 5 5 17 . 1 . . 8 . . Terrain Destroyed 987 | . . 66 8 . 95 87 120 10 33 . 33 147 2 2 . 64 29 . 5 11 172 . 1 . . 51 . 51 Melee 259 | . . 2 1 . . 5 111 8 5 . 4 75 2 2 . 1 19 . 5 1 9 . 1 . . 8 . . Projectile 36 | . . . . . . . 9 2 1 . 2 7 . . . . 5 . . 10 . . . . . . . . AOE 692 | . . 64 7 . 95 82 . . 27 . 27 65 . . . 63 5 . . . 163 . . . . 43 . 51 Terrain Rammed . | . . . . . . . . . . . . . . . . . . . . . . . . . . . . . Walls Destroyed . | . . . . . . . . . . . . . . . . . . . . . . . . . . . . . Machines Disabled . | . . . . . . . . . . . . . . . . . . . . . . . . . . . . . Actions | -11 -10 -9 -9 -9 -8 -8 -7 -7 -7 -7 -6 -6 -6 -6 -6 -5 -5 -5 -5 -5 -4 -4 -4 -4 -3 -3 -2 -1 --------- Run | Yrd Mat Mat Min Exi Min Mat Fac Low Low Zio Pro Fac Low Low Dat Pro Fac Was Fac Ext Fac Upp Upp Zhi Pro Res Res Acc Total 28433 | 104 731 1501 815 247 349 1920 4573 1072 572 823 649 4278 371 478 221 417 1641 356 1448 1418 1029 639 263 251 672 460 298 837 Wait 3804 | . 38 159 146 . 3 167 686 83 62 . 71 492 4 25 13 9 201 5 187 560 202 441 3 79 138 10 3 17 Move 22542 | 85 566 1112 647 237 332 1364 3524 970 487 814 561 3508 360 446 177 394 1339 338 1193 789 717 189 256 158 529 399 273 778 Hop . | . . . . . . . . . . . . . . . . . . . . . . . . . . . . . Pick Up 187 | 6 20 37 2 . 2 25 21 . . . . 15 . . 1 1 12 1 12 5 12 . . 3 1 2 2 7 Fast Attach 126 | 7 9 6 . . . 21 16 2 . . . 9 2 2 2 . 4 . 8 3 6 . . 5 1 7 7 9 Attach 86 | . 3 3 1 2 2 5 5 . . . . 14 1 . 3 2 8 . 3 3 13 4 1 1 1 5 3 3 Detach 44 | . 1 . . 2 . 4 3 . . . . 12 1 1 2 2 3 . 4 . 1 2 1 3 . . 2 . Swap 249 | . 12 39 5 1 1 38 55 5 11 6 8 29 . . . 1 15 3 8 6 3 . . 2 1 . . . Drop 220 | . 18 48 1 1 1 47 35 2 1 . . 20 1 2 1 . 15 1 14 . 6 . . . . 1 3 2 Fire 475 | 6 64 90 7 . 8 178 17 2 6 . 5 13 . . . 7 10 . . 30 25 . . . . 2 1 4 Melee 499 | . . 2 5 4 . 7 176 8 5 3 4 117 2 2 22 1 34 7 19 8 44 1 2 . 1 25 . . Ram 21 | . . . . . . . . . . . . . . . . . . . . 1 . . . . . 9 4 7 Kick 2 | . . . . . . . . . . . . . . . . . . . . . . . . . . . . 2 Crush 10 | . . 5 1 . . . . . . . . . . . . . . . . . . . . . . . . 4 Escape Stasis 4 | . . . . . . . . . . . . . . . . . . . . 4 . . . . . . . . Rewire 12 | . . . . . . . . . . . . 2 . . . . . 1 . 9 . . . . . . . . Trap 152 | . . . . . . 64 35 . . . . 47 . . . . . . . . . 2 . . . . . 4 Miscellaneous . | . . . . . . . . . . . . . . . . . . . . . . . . . . . . . Route ------- -11/Scrapyard -10/Materials (discovered 4 exits: *Mat x3 / [*Min]) -9/Materials (discovered 6 exits: *Mat x3 / [*Min] / [*Sto x2]) -9/Mines (discovered 4 exits: *Mat x2 / *Exi / *Zio) -9/Exiles (discovered 2 exits: [*Min x2]) -8/Mines (discovered 2 exits: *Mat x2) -8/Materials (discovered 3 exits: *Fac x3) -7/Factory (discovered 4 exits: *Fac x2 / *Low x2) -7/Lower Caves -7/Lower Caves -7/Zion -6/Proximity Caves -6/Factory (discovered 4 exits: *Fac x2 / *Low x2) -6/Lower Caves -6/Lower Caves -6/Data Miner -5/Proximity Caves -5/Factory -5/Waste -5/Factory (discovered 5 exits: *Fac / Upp x2 / *Ext x2) -5/Extension -4/Factory (discovered 3 exits: *Upp x2 / Arm) -4/Upper Caves -4/Upper Caves -4/Zhirov -3/Proximity Caves -3/Research -2/Research -1/Access History --------- Turn | Location | Event 5 | -11/Scrapyard | Discovered new exit (range 14) 126 | -11/Scrapyard | Entered Materials 261 | -10/Materials | Discovered new exit (range 6) 311 | -10/Materials | Build established: Mutant 510 | -10/Materials | Core integrity fell below 50% 536 | -10/Materials | Lost 4 parts (1n2u1w) 571 | -10/Materials | Discovered new exit (range 10) 797 | -10/Materials | Discovered new exit (range 5) 1065 | -10/Materials | Central database locked down 1127 | -10/Materials | Discovered new exit (range 13) 1204 | -10/Materials | Entered another Materials area 1204 | -9/Materials | Evolved 2 slots: Propulsion x1, Utility x1 1783 | -9/Materials | Build established: Scavenger-Mutant 1893 | -9/Materials | Discovered new exit (range 6) 2126 | -9/Materials | Discovered new exit (range 14) 2259 | -9/Materials | Discovered new exit (range 13) 2630 | -9/Materials | Discovered new exit (range 11) 2690 | -9/Materials | Discovered new exit (range 15) 2804 | -9/Materials | First assault squad dispatched 2974 | -9/Materials | Repaired Hrd. Light Armor Plating 3118 | -9/Materials | Repaired Shotgun 3149 | -9/Materials | Discovered new exit (range 8) 3793 | -9/Materials | Entered Mines 3794 | -9/Mines | A Derelict revealed a hidden shortcut to a safe place 3872 | -9/Mines | Learned 2 Materials zone layouts 3952 | -9/Mines | Assembled infested the area 4280 | -9/Mines | Discovered new exit (range 5) 4433 | -9/Mines | Discovered new exit (range 5) 4469 | -9/Mines | Deemed a non-threat by the Exiles lab entrance 5050 | -9/Mines | Learned location of Storage (-9) 5528 | -9/Mines | Discovered new exit (range 5) 5540 | -9/Mines | Entered Exiles 5580 | -9/Exiles | Discovered new exit (range 15) 5607 | -9/Exiles | Met 8R-AWN 5648 | -9/Exiles | Met EX-HEX 5736 | -9/Exiles | Met EX-DEC 5871 | -9/Exiles | Met EX-BIN 5964 | -9/Exiles | Learned location of Zion (-7) 6084 | -9/Exiles | Discovered new exit (range 15) 6120 | -9/Exiles | Entered Mines 6235 | -8/Mines | Discovered new exit (range 11) 6562 | -8/Mines | Discovered new exit (range 5) 6941 | -8/Mines | Core integrity fell below 50% 6949 | -8/Mines | Entered Materials 6949 | -8/Materials | Evolved 2 slots: Utility x2 6950 | -8/Materials | Identified exit to Factory 6974 | -8/Materials | Lost 3 parts (2n1u) 8304 | -8/Materials | Repaired Hrd. Heavy Armor Plating 8430 | -8/Materials | Discovered exit to Factory (range 4) 9135 | -8/Materials | Garrison activated, responded to threat 9571 | -8/Materials | Build established: Mutant 9601 | -8/Materials | Discovered exit to Factory (range 10) 9862 | -8/Materials | Repaired Hrd. Heavy Armor Plating 10269 | -8/Materials | Central database locked down 10549 | -8/Materials | First assault squad dispatched 10613 | -8/Materials | Sterilization system engaged 10613 | -8/Materials | Non-combat units ordered to evacuate 10659 | -8/Materials | Destroyed 9 combat bots 10713 | -8/Materials | Combat units ordered to evacuate 10913 | -8/Materials | Ambient heat levels rising (+10) 11063 | -8/Materials | Ambient heat levels rising (+10) 11140 | -8/Materials | Entered Factory 11140 | -7/Factory | Evolved 2 slots: Propulsion x1, Utility x1 11720 | -7/Factory | Discovered new exit (range 9) 12326 | -7/Factory | Discovered new exit (range 9) 12703 | -7/Factory | Discovered new exit (range 20) 12740 | -7/Factory | Search patrols dispatched 13140 | -7/Factory | Search patrols dispatched 13306 | -7/Factory | Build established: Scout 13724 | -7/Factory | Discovered new exit (range 5) 13726 | -7/Factory | Identified exit to Lower Caves 13940 | -7/Factory | First assault squad dispatched 14011 | -7/Factory | Entered Lower Caves 14171 | -7/Lower Caves | Encountered a Warlord checkpoint 14332 | -7/Lower Caves | Learned Factory stockpile data 14476 | -7/Lower Caves | Discovered new exit (range 15) 14498 | -7/Lower Caves | Identified exit to Lower Caves 14499 | -7/Lower Caves | Entered another Lower Caves area 14559 | -7/Lower Caves | Encountered a Warlord checkpoint 14561 | -7/Lower Caves | Learned Factory stockpile data 14780 | -7/Lower Caves | Discovered new exit (range 18) 14787 | -7/Lower Caves | Identified exit to Zion 14788 | -7/Lower Caves | Entered Zion 14798 | -7/Zion | Learned location of 1 exit from Proximity Caves 14803 | -7/Zion | Acquired unknown access codes intercepted by a Zionite 14807 | -7/Zion | Discovered new exit (range 12) 14822 | -7/Zion | System corruption cleaned by Quarantine Array 14861 | -7/Zion | Learned location of Quarantine (-3) 14888 | -7/Zion | Learned location of Data Miner (-6) 14997 | -7/Zion | Learned location of Armory (-4) 15059 | -7/Zion | Visited the Megawrench Repair Shop 15059 | -7/Zion | Megawrench repaired 11 parts 15107 | -7/Zion | Identified exit to Proximity Caves 15113 | -7/Zion | Entered Proximity Caves 15114 | -6/Proximity Caves | Identified exit to Factory 15270 | -6/Proximity Caves | Spotted B-75 Beast 15413 | -6/Proximity Caves | Learned 4 Factory zone layouts 15430 | -6/Proximity Caves | Entered Factory 15430 | -6/Factory | Evolved 2 slots: Utility x2 15431 | -6/Factory | Identified exit to Lower Caves 15889 | -6/Factory | Build established: Infiltrator-Ninja 15994 | -6/Factory | Discovered new exit (range 15) 16018 | -6/Factory | Identified exit to Factory 16150 | -6/Factory | Discovered exit to Factory (range 8) 16418 | -6/Factory | Found Prototype Launcher 16421 | -6/Factory | Identified Scatter Rocket Array 16741 | -6/Factory | P-60 Hacker assimilated allied Technician 5a 17027 | -6/Factory | Repaired Cld. Airjet 17686 | -6/Factory | Spotted B-75 Beast 17693 | -6/Factory | Build established: Scout 17872 | -6/Factory | Entered Lower Caves 17881 | -6/Lower Caves | Found Alien Artifact 17881 | -6/Lower Caves | Identified Core Expander 17881 | -6/Lower Caves | Installed Core Expander, added new Power slot 17927 | -6/Lower Caves | Learned Factory trap positions 17953 | -6/Lower Caves | Learned Factory security intel 18031 | -6/Lower Caves | Discovered new exit (range 17) 18040 | -6/Lower Caves | Identified exit to Lower Caves 18049 | -6/Lower Caves | Entered another Lower Caves area 18085 | -6/Lower Caves | Encountered a Warlord checkpoint 18227 | -6/Lower Caves | Learned Factory terminal intel 18281 | -6/Lower Caves | Discovered new exit (range 9) 18284 | -6/Lower Caves | Identified exit to Data Miner 18285 | -6/Lower Caves | Entered Data Miner 18285 | -6/Data Miner | Discovered new exit (range 6) 18288 | -6/Data Miner | Identified exit to Proximity Caves 18292 | -6/Data Miner | Met Data Miner 18308 | -6/Data Miner | Learned location of Section 7 (-3) 18308 | -6/Data Miner | Acquired the access code to Warlord's prototype stash 18312 | -6/Data Miner | Received God Mode back door access code from Data Miner 18345 | -6/Data Miner | Destroyed Data Miner 18348 | -6/Data Miner | Found Prototype Hackware 18348 | -6/Data Miner | Identified System Mapper 18350 | -6/Data Miner | Found Prototype Hackware 18350 | -6/Data Miner | Identified Quantum Router 18352 | -6/Data Miner | Data Conduit disabled 18443 | -6/Data Miner | Entered Proximity Caves 18472 | -5/Proximity Caves | Lost 3 parts (1p1n1u) 18527 | -5/Proximity Caves | Spotter reported a threat 18650 | -5/Proximity Caves | Discovered exit to Factory (range 7) 18652 | -5/Proximity Caves | Entered Factory 18652 | -5/Factory | Evolved 2 slots: Propulsion x1, Utility x1 18653 | -5/Factory | Loaded intel: 95 trap records 18656 | -5/Factory | Loaded intel: 27 terminal locations 18706 | -5/Factory | Discovered new exit (range 3) 18707 | -5/Factory | Identified exit to Extension 19041 | -5/Factory | Fabricated Quantum Capacitor (x2) 19165 | -5/Factory | Build established: Hacker-Ninja 19550 | -5/Factory | Sucked down chute 19550 | -5/Factory | Entered Waste 19551 | -5/Waste | Joined by Warlord forces that had cleared the area 19555 | -5/Waste | 1 allies followed down the chute 19591 | -5/Waste | Discovered new exit (range 13) 19722 | -5/Waste | Identified exit to Factory 19725 | -5/Waste | Entered Factory 19725 | -5/Factory | Accompanied by 21 allies 19862 | -5/Factory | Discovered new exit (range 22) 19885 | -5/Factory | Identified exit to Factory 19890 | -5/Factory | Lost 7 allies 19918 | -5/Factory | Build established: Hacker-Scout 19985 | -5/Factory | Identified exit to Upper Caves 20025 | -5/Factory | First assault squad dispatched 20120 | -5/Factory | Fabricated Nova Cannon (x1) 20178 | -5/Factory | Fabricated Cmb. Airjet (x2) 20272 | -5/Factory | Build established: Hacker-Ninja 20302 | -5/Factory | Fabricated Lgt. Regenerative Plating (x1) 20303 | -5/Factory | Repaired Imp. Utility Shielding? 20371 | -5/Factory | Fabricated X-62 Marksman? 20561 | -5/Factory | Entered Extension 20561 | -5/Extension | Accompanied by 8 allies 20620 | -5/Extension | Repaired Mni. Grenade Launcher 20656 | -5/Extension | Repaired Cld. Airjet 20692 | -5/Extension | Repaired Cld. Airjet 20723 | -5/Extension | Rescued a captive Derelict 20739 | -5/Extension | Build established: Hacker-Scout 20754 | -5/Extension | Rescued a captive Derelict 20755 | -5/Extension | Rescued a captive Derelict 20766 | -5/Extension | Rescued A7 20837 | -5/Extension | Lost 5 allies 20850 | -5/Extension | Spotted B-75 Beast 20863 | -5/Extension | Spotted B-75 Beast 20872 | -5/Extension | Extracted ID and sensor layout for unrecognized location from A7's data core 20880 | -5/Extension | Found Prototype Protection 20886 | -5/Extension | Allies destroyed B-75 Beast 20935 | -5/Extension | Lost 5 allies 21131 | -5/Extension | Build established: Hacker-Mutant 21510 | -5/Extension | Discovered exit to Factory (range 3) 21719 | -5/Extension | Entered Factory 21719 | -4/Factory | Evolved 2 slots: Propulsion x1, Utility x1 21719 | -4/Factory | Identified Med. Regenerative Plating 22016 | -4/Factory | Identified exit to Upper Caves 22016 | -4/Factory | Identified exit to Armory 22219 | -4/Factory | Fabricated Cmb. Airjet (x2) 22219 | -4/Factory | Search patrols dispatched 22300 | -4/Factory | Fabricated Lgt. Regenerative Plating (x1) 22469 | -4/Factory | Search patrols dispatched 22474 | -4/Factory | Lost 3 parts (1p1n1w) 22539 | -4/Factory | Entered Upper Caves 22556 | -4/Upper Caves | Encountered a Warlord checkpoint 22557 | -4/Upper Caves | Lost 5 parts (1n3u1w) 22569 | -4/Upper Caves | P-70 Sage assimilated allied TR-U34(M) 22649 | -4/Upper Caves | Discovered new exit (range 9) 22653 | -4/Upper Caves | Identified exit to Upper Caves 22840 | -4/Upper Caves | Build established: Hacker-Scout 23079 | -4/Upper Caves | Entered another Upper Caves area 23113 | -4/Upper Caves | Spotted B-86 Titan 23169 | -4/Upper Caves | Discovered new exit (range 24) 23209 | -4/Upper Caves | Identified exit to Zhirov 23209 | -4/Upper Caves | Entered Zhirov 23209 | -4/Zhirov | Discovered new exit (range 3) 23211 | -4/Zhirov | Identified exit to Proximity Caves 23218 | -4/Zhirov | Met Zhirov 23227 | -4/Zhirov | Learned location of Testing (-2) 23227 | -4/Zhirov | Learned location of Command (-1) 23232 | -4/Zhirov | Zhirov requested help retrieving the SGEMP Prototype 23239 | -4/Zhirov | Found Alien Artifact 23239 | -4/Zhirov | Identified Integrated Dissipator 23239 | -4/Zhirov | Installed Integrated Dissipator, increased core heat dissipation (+20) 23272 | -4/Zhirov | Found Alien Artifact 23379 | -4/Zhirov | Entered Proximity Caves 23628 | -3/Proximity Caves | Attracted the attention of an 0b10 checkpoint 23711 | -3/Proximity Caves | System corruption reached 10% 23722 | -3/Proximity Caves | Spotted B-86 Titan 23725 | -3/Proximity Caves | Spotter reported a threat 23749 | -3/Proximity Caves | Discovered new exit (range 5) 23750 | -3/Proximity Caves | Identified exit to Research 23751 | -3/Proximity Caves | Entered Research 23751 | -3/Research | Evolved 2 slots: Utility x2 23815 | -3/Research | Lost 3 parts (2n1u) 23913 | -3/Research | Spotted B-86 Titan 23936 | -3/Research | Discovered new exit (range 14) 23941 | -3/Research | Identified exit to Research 24000 | -3/Research | Released all parts (12) 24028 | -3/Research | Lost 12 parts (2p4n3u3w) 24035 | -3/Research | Identified Transdimensional Reconstructor 24035 | -3/Research | Warped through subspace 24036 | -3/Research | Core integrity fell below 50% 24037 | -3/Research | Entered another Research area 24037 | -2/Research | Evolved 2 slots: Utility x1, Weapon x1 24177 | -2/Research | Lost 4 parts (3u1w) 24185 | -2/Research | Spotted B-90 Cyclops 24199 | -2/Research | Discovered new exit (range 15) 24209 | -2/Research | Entered Access 24209 | -1/Access | Evolved 2 slots: Propulsion x1, Utility x1 24313 | -1/Access | Build established: Mutant 24401 | -1/Access | Found Fusion Bomb Launcher 24403 | -1/Access | Found Fusion Bomb Launcher 24530 | -1/Access | Spotted B-99 Colossus 24673 | -1/Access | Lost 3 parts (2n1u) 24767 | -1/Access | Spotted B-99 Colossus 24803 | -1/Access | Core integrity fell below 50% 24885 | -1/Access | Core integrity fell below 20% 24905 | -1/Access | Lost 5 parts (1p2n1u1w) 24905 | -1/Access | Destroyed by H-88 Terminator with KE Penetrator Last Messages --------------- 24871_ Adv. Trap Extractor dropped Dirty Bomb Trap. 24872_ Installed Dirty Bomb Trap. 24874_ Adv. Heavy Siege Treads destroyed. 24874_ Penetrated by Slug. 24881_ S-43 Plague triggered Dirty Bomb Trap. 24881_ An explosion rips through the floor. 24881_ S-43 Plague destroyed. 24881_ Penetrated by Slug. 24882_ Adv. Trap Extractor dropped Dirty Bomb Trap. 24882_ Slammed into S-43 Plague. 24883_ Installed Dirty Bomb Trap. 24884_ Slammed into S-43 Plague. 24884_ Slug penetrates Wall. 24886_ S-43 Plague destroyed. 24886_ Door malfunctions. 24887_ S-43 Plague system terminally corrupted. 24904_ Slug penetrates Wall. 24905_ Adv. Trap Extractor dropped Dirty Bomb Trap. 24905_ Installed Dirty Bomb Trap. 24905_ Slug penetrates Wall. Map ----- +----------------------------------------------------+ | ??????????????????????????????????????? | | ??????????????????????????????????????? | | ??????????????????????????????????????? | | ??????????????????????????????????????? | | ??????????????????????????????????????? | | ??????????????????????????????????????? | | ??????????????????????????????????????? | | ??????????????????????????????????????? | | ??????????????????????????????????????? | | ??????????????????????????????????????? | | ??????????????????????????????????????? | | ??????????????????????????????????????? | | ??????????????????????????????????????? | | ??????????????????????????????????????? | | ??????????????+???????????????????????? | | ?????????????? ???????????????????????? | | ?????????????? ???????????????????????? | | ?????????????# #??????????????????????? | | ?????????????# #?????#????????????????? | | ?????????????# #???? #????????????????? | | ???????????### ###? #????????????????? | | ???????????# # #????????????????? | | ???????????# # ?????????????????? | | ???????????+ ???????????????????? | | ???????????# #????????????????????? | | ???????????# @ #????????????????????? | | ??????????####/####???????????????????? | | ??????????# #???????????????????? | | ??????????# #???????????????????? | | ??????????# #???????????????????? | | ??????????# #???????????????????? | | ??????????# #???????????????????? | | ??????????# #?????#?????????????? | | ??????????# #???? #?????????????? | | ??????????#s########### #####?????????? | | ??????????# +?????????? | | ??? ]?????# #?????????? | | ?? ??# ####??????? | | # # % ??????? | | # / * ?????? | | # # ?????? | | # # % ?????? | | # ?### = ########/#####????????? | | ? ??# %= ?????????????????????? | | ? ???# [ #????????????????????? | | ? ? ????# # #????????????????????? | | ? ?? ????###*###????????????????????? | | ???? ???????# #??????????????????????? | | ???##????????# #??????????????????????? | | ????????????? * ??????????????????????? | +----------------------------------------------------+ Best States ------------- Heat Dissipation 92 Energy Generation 39 Energy Capacity 545 Matter Stores 300 Matter Capacity 300 Sight Range 22 Robot Scan Range 16 Terrain Scan Range 24 Terrain Scan Density 210 ECM Strength 1 Jamming Range 12 Armor Coverage 600 Resistance: EM 25 Utility Shielding 66 Weapon Cycling 15 Evasion (%) 57 Melee Accuracy 8 Core Analysis 6 Recoil Reduction 4 Matter Filtering 30 Particle Charging 20 Offensive Hacking 30 Defensive Hacking 25 Authchip Count 6 Trap Extractor Capacity 8 Item Schematics ----------------- Hcp. Storage Unit | -9/Materials | Scanalyzed Med. Storage Unit | -9/Materials | Scanalyzed Arm. Huge Wheel | -7/Zion | Archive 0b10 Decoder Chip [Scout] | -7/Zion | Archive Adv. Terrain Scan Processor | -7/Zion | Archive Flexi-carbon Leg | -7/Zion | Archive Adv. Assault Cannon | -7/Zion | Archive Imp. Target Analyzer | -7/Zion | Archive Transmission Jammer | -7/Zion | Archive Imp. Remote Datajack | -7/Zion | Archive Imp. Thermal Shield | -7/Zion | Archive Imp. Medium Armor Plating | -7/Zion | Archive Proton Cannon | -7/Zion | Archive Mak. Terrain Scan Processor | -7/Zion | Archive Power Amplifier | -7/Zion | Archive Hvy. Machine Gun | -7/Zion | Archive Corruption Screen | -7/Zion | Archive Adv. Terrain Scanner | -6/Factory | Scanalyzed Cmb. Airjet | -6/Factory | Scanalyzed Combat Drone Bay | -6/Data Miner | Free Lgt. Regenerative Plating | -6/Data Miner | Free Enh. Armored Leg | -6/Data Miner | Free Exp. Heat Sink | -6/Data Miner | Free Neutron Cannon | -6/Data Miner | Free Myomer Leg | -6/Data Miner | Free Adv. Transmission Jammer | -6/Data Miner | Free Micro-nuke Launcher | -6/Data Miner | Free Nuclear Pulse Array | -6/Data Miner | Free Adv. Power Amplifier | -6/Data Miner | Free Imp. System Guard | -6/Data Miner | Free Graphene Brace | -5/Factory | Hacked Assault Drone Bay | -4/Zhirov | Free Exp. Optical Array | -4/Zhirov | Free Imp. Arc Thrower | -4/Zhirov | Free Robot Schematics ------------------ T-07 Excavator | -7/Zion | Archive A-02 Transporter | -7/Zion | Archive S-27 Virus | -7/Zion | Archive D-83 Annihilator | -7/Zion | Archive E-15 Imp | -6/Data Miner | Free X-62 Marksman | -6/Data Miner | Free R-10 Processor | -6/Data Miner | Free M-22 Extractor | -6/Data Miner | Free B-60 Warrior | -6/Data Miner | Free Fabricated ------------ Quantum Capacitor | x2 | -5/Factory | Preloaded Nova Cannon | x1 | -5/Factory | Preloaded, Authchip Cmb. Airjet | x2 | -5/Factory | Authchip Lgt. Regenerative Plating | x1 | -5/Factory | Authchip X-62 Marksman | x2 | -5/Factory | Authchip Cmb. Airjet | x2 | -4/Factory | Authchip Lgt. Regenerative Plating | x1 | -4/Factory | Authchip Alien Tech Used ----------------- Core Expander Integrated Dissipator Transdimensional Reconstructor Achievements -------------- None Challenges ------------ None Game ------ Seed NuclearFlyingSteel Manual? 0 Play Time 07:28:25 Cumulative 472.8 hours Start 2024.06.16 @ 11:22:58 End 2024.06.18 @ 11:53:41 Sessions 9 Manual Loads 0 Difficulty Rogue Special Mode None Game No. 142 Rogue 103 Adventurer 0 Explorer 39 Win Type - Total 13 Types 11/1/1/0/0/0/0/0/0 Lore% 76 Gallery% 83 Achievement% 71 Wizard Run 0 Options --------- Layout 0 ASCII 1 Keyboard 1 Movement Arrows Keybinds 0 Fullscreen 2 Font 36/Smallcaps Map View 76x50 Zoom Use 0% Tactical HUD 1 Map Filters NONE Filters NONE Steam 1 RUN: 4be76705-4d4e-4cca-8e56-f27f5e3fd6e6